fUSD/lending_fUSD_20240122
["ID","MTS","AMOUNT","RATE_DAILY","PERIOD"]
[312545283,1705957838708,-182.39401206,0.00022998,2]
[312545285,1705957838717,-867.50020387,0.00022998,2]
[312545287,1705957838727,-529.15035393,0.00022998,2]
[312545289,1705957838735,-155.0,0.00022998,2]
[312545291,1705957838744,-203.12390135,0.00022998,2]
[312545293,1705957838754,-472.20510799,0.00022998,2]
[312545295,1705957838762,-352.75629705,0.00022998,2]
[312545297,1705957838772,-338.0945803,0.00022998,2]
[312545299,1705957838781,-696.50758074,0.00022998,2]
[312545301,1705957838790,-260.68258526,0.00022998,2]
[312545303,1705957838800,-525.7659958,0.00022998,2]
[312545305,1705957838809,-5285.98000595,0.00022998,2]
[312545307,1705957838818,-3628.02899635,0.00022998,2]
[312545309,1705957838827,-300.62032364,0.00022998,2]
[312545311,1705957838836,-1042.70064617,0.00022998,2]
[312545313,1705957838846,-232.19045124,0.00022998,2]
[312545316,1705957838855,-226.11786442,0.00022998,2]
[312545318,1705957838864,-175.41364482,0.00022998,2]
[312545320,1705957838874,-248.27893998,0.00022998,2]
[312545322,1705957838884,-386.16149821,0.00022998,2]
[312545324,1705957838893,-795.11284805,0.00022998,2]
[312545326,1705957838903,-228.23700858,0.00022998,2]
[312545327,1705957838912,-259.55953479,0.00022998,2]
[312545330,1705957838922,-155.0,0.00022998,2]
[312545331,1705957838931,-791.45927341,0.00022998,2]
[312545333,1705957838940,-5891.91807861,0.00022998,15]
[312545335,1705957838949,-155.6556456,0.00022998,2]
[312545337,1705957838959,-2080.28291095,0.00022998,2]
[312545339,1705957838968,-419.03655905,0.00022998,2]
[312545342,1705957838980,-1062.58478674,0.00022998,2]
[312545344,1705957838988,-435.53038091,0.00022998,2]
[312545346,1705957838997,-360.36079401,0.00022998,2]
[312545348,1705957839007,-499.99,0.00022998,2]
[312545350,1705957839018,-1588.24272214,0.00022998,2]
[312545352,1705957839027,-279.04002963,0.00022998,2]
[312545354,1705957839037,-601.32631092,0.00022998,2]
[312545356,1705957839047,-1211.28966442,0.00022998,2]
[312545358,1705957839057,-3667.33,0.00022998,2]
[312545360,1705957839067,-1035.86896048,0.00022998,2]
[312545362,1705957839076,-7103.57322363,0.00022999,5]
[312545364,1705957839085,-1496.74930404,0.00022999,2]
[312545366,1705957839094,-185.56412436,0.00022999,10]
[312545368,1705957839104,-152.39352753,0.00022999,2]
[312545370,1705957839113,-150.0,0.00022999,2]
[312545372,1705957839122,-152.39352753,0.00022999,2]
[312545374,1705957839131,-150.0,0.00022999,2]
[312545376,1705957839141,-152.39352753,0.00022999,2]
[312545378,1705957839150,-150.0,0.00022999,2]
[312545380,1705957839159,-150.0,0.00022999,2]
[312545382,1705957839169,-152.39352753,0.00022999,2]
[312545384,1705957839179,-152.39352753,0.00022999,2]
[312545386,1705957839188,-150.0,0.00022999,2]
[312545388,1705957839197,-152.39352753,0.00022999,2]
[312545390,1705957839208,-150.0,0.00022999,2]
[312545392,1705957839220,-152.39352753,0.00022999,2]
[312545394,1705957839229,-150.0,0.00022999,2]
[312545396,1705957839238,-152.39352753,0.00022999,2]
[312545398,1705957839249,-150.0,0.00022999,2]
[312545400,1705957839258,-152.39352753,0.00022999,2]
[312545402,1705957839268,-150.0,0.00022999,2]
[312545404,1705957839278,-152.39352753,0.00022999,2]
[312545405,1705957839288,-150.0,0.00022999,2]
[312545406,1705957839297,-152.39352753,0.00022999,2]
[312545407,1705957839306,-150.0,0.00022999,2]
[312545408,1705957839316,-152.39352753,0.00022999,2]
[312545409,1705957839326,-150.0,0.00022999,2]
[312545410,1705957839335,-156.93550965,0.00023,2]
[312545411,1705957839345,-11169926.20654396,0.00023,2]
[312545412,1705957839354,-1167485.47342618,0.00023,2]
[312545415,1705957839738,-16104.48841526,0.00023,2]
[312545416,1705957839750,-803.8,0.00023,2]
[312545420,1705957841282,-203.87802627,0.000229,2]
[312545421,1705957841292,-1178830.77543929,0.00023,2]
[312545422,1705957841343,-500.0,0.00023,2]
[312545423,1705957841367,-833.73304202,0.00023,2]
[312545424,1705957841918,-40223.70000001,0.00023,2]
[312545425,1705957841981,-696.22574302,0.00023,2]
[312545431,1705957843131,-10313.085,0.00023,2]
[312545432,1705957843193,-6895.29698425,0.00023,2]
[312545433,1705957843209,-419203.30216854,0.00023,2]
[312545434,1705957843221,-484.492822,0.00023,2]
[312545435,1705957843262,-10505.4131,0.00023,2]
[312545436,1705957843326,-419.39829155,0.00023,2]
[312545437,1705957843338,-1082.35294248,0.00023,2]
[312545438,1705957843355,-10803.63224169,0.00023,2]
[312545439,1705957843381,-919.18359104,0.00023,2]
[312545449,1705957846118,-12056.7,0.00023,2]
[312545450,1705957846135,-2616.36002426,0.00023,2]
[312545451,1705957846222,-2333.43729331,0.00023,2]
[312545452,1705957846298,-258.67712266,0.00023,2]
[312545453,1705957846553,-14550.36091741,0.00023,2]
[312545454,1705957850219,378.96401843,0.00020029,2]
[312545455,1705957863850,560.76781231,0.00020468,2]
[312545466,1705958025852,202.38,0.00019989,2]
[312545475,1705958307496,716.73,0.00021004,2]
[312545476,1705958307625,176.15,0.00021004,2]
[312545477,1705958307703,250.0,0.00021004,2]
[312545478,1705958353961,159.45567669,0.00020931,2]
[312545480,1705958440314,2000.0,0.00020938,2]
[312545481,1705958492272,500.0,0.00020984,3]
[312545482,1705958530196,23900.0,0.00020984,2]
[312545483,1705958530414,192.26,0.00019066,2]
[312545484,1705958545138,338.34,0.00020926,2]
[312545485,1705958609135,155.0,0.00021005,2]
[312545486,1705958611132,1061.69965086,0.00021005,2]
[312545487,1705958616775,155.0,0.00021005,2]
[312545488,1705958625157,155.33297372,0.000209,2]
[312545489,1705958626613,3192.87206217,0.00021005,2]
[312545490,1705958629087,643.27894279,0.00021005,2]
[312545491,1705958634758,155.0,0.00021005,2]
[312545492,1705958637290,155.0,0.00021005,2]
[312545493,1705958637835,3032.26696473,0.00021005,2]
[312545494,1705958643360,191.04557841,0.00021005,2]
[312545495,1705958643395,1042.13133771,0.00021005,2]
[312545496,1705958644621,1925.9715283,0.00020164,2]
[312545497,1705958644883,3679.98652142,0.00021005,4]
[312545498,1705958646503,1204.52083617,0.00021005,2]
[312545499,1705958648528,248.93553519,0.00021005,2]
[312545500,1705958648760,155.0,0.00021005,2]
[312545501,1705958651281,155.0,0.00021005,2]
[312545502,1705958655355,190.90747905,0.00021005,2]
[312545503,1705958655796,1436.13846666,0.00021005,2]
[312545504,1705958656042,155.0,0.00021005,2]
[312545505,1705958657362,730.1270345,0.00021005,2]
[312545506,1705958657414,16003.21429227,0.00021005,2]
[312545507,1705958713932,43035.37746379,0.00021002,2]
[312545508,1705958720285,215.71744447,0.00021002,2]
[312545509,1705958727403,1853.89068505,0.00021002,2]
[312545510,1705958729828,203.45121285,0.00021002,2]
[312545511,1705958785099,155.0,0.00021002,2]
[312545512,1705958849518,214.25,0.00020744,2]
[312545513,1705958855118,215.71744447,0.00021002,2]
[312545514,1705958897871,547.51,0.00020798,2]
[312545515,1705958922845,327.8738,0.00020904,2]
[312545516,1705958973057,2316.51,0.00020816,2]
[312545517,1705959013357,281.95,0.00020866,2]
[312545544,1705959032271,-652.06705863,0.00021003,2]
[312545545,1705959032281,-300.0,0.00021003,2]
[312545546,1705959032290,-1084.78294137,0.00021004,2]
[312545547,1705959032301,-1220.71277758,0.00021004,2]
[312545548,1705959032313,-825.61972449,0.00021004,2]
[312545549,1705959032325,-502.50678473,0.00021004,2]
[312545550,1705959032338,-1073.34824939,0.00021004,2]
[312545551,1705959032350,-5826.42447837,0.00021004,2]
[312545552,1705959032359,-1203.64049391,0.00021005,2]
[312545553,1705959032369,-248.65710976,0.00021005,2]
[312545554,1705959032378,-301.79567294,0.00021005,4]
[312545555,1705959032388,-292.0,0.00021068,2]
[312545556,1705959032398,-183.69,0.00021084,3]
[312545557,1705959032407,-221.49,0.00021137,2]
[312545558,1705959032417,-500.0,0.00021142,2]
[312545559,1705959032426,-2705.0,0.00021145,2]
[312545560,1705959032436,-386.65,0.00021145,2]
[312545561,1705959032445,-10346.8,0.00021173,2]
[312545562,1705959032454,-1852.42,0.00021175,2]
[312545563,1705959032464,-192.26,0.0002133,2]
[312545564,1705959032474,-204.73,0.00021406,2]
[312545565,1705959032483,-167.47,0.00021444,2]
[312545566,1705959032493,-200.0,0.00021444,2]
[312545567,1705959032502,-250.0,0.00021444,2]
[312545568,1705959032512,-2000.0,0.00021444,2]
[312545569,1705959032521,-204.73,0.00021465,2]
[312545570,1705959032531,-204.73,0.00021523,2]
[312545571,1705959032540,-204.73,0.00021582,2]
[312545572,1705959032550,-167.28,0.00021636,2]
[312545573,1705959032561,-204.73,0.00021641,2]
[312545574,1705959032570,-556.07,0.00021644,2]
[312545575,1705959032580,-160.18,0.00021658,2]
[312545576,1705959032591,-204.73,0.00021699,2]
[312545577,1705959032601,-163.46,0.00021718,2]
[312545578,1705959032610,-204.73,0.00021758,2]
[312545579,1705959032621,-204.73,0.00021817,2]
[312545580,1705959032632,-204.73,0.00021876,2]
[312545581,1705959032641,-250.0,0.00021918,2]
[312545583,1705959032651,-204.73,0.00021934,2]
[312545585,1705959032661,-204.73,0.00021993,2]
[312545587,1705959032670,-2000.0,0.00022,2]
[312545589,1705959032680,-204.73,0.00022052,2]
[312545591,1705959032689,-204.73,0.0002211,2]
[312545593,1705959032699,-204.73,0.00022169,2]
[312545595,1705959032708,-224.06,0.00022186,2]
[312545597,1705959032718,-204.73,0.00022228,2]
[312545599,1705959032728,-227.21490081,0.00022245,2]
[312545600,1705959032737,-204.73,0.00022287,2]
[312545601,1705959032747,-215.46936808,0.0002232,2]
[312545603,1705959032756,-407.19395765,0.00022343,2]
[312545605,1705959032766,-155.0,0.00022344,2]
[312545607,1705959032774,-213010.61868874,0.00022345,2]
[312545609,1705959032787,-30582.56403542,0.00022345,2]
[312545611,1705959032799,-656.44624679,0.00022345,2]
[312545615,1705959032826,-57522.22672905,0.00022345,2]
[312545616,1705959032838,-204.73,0.00022345,2]
[312545617,1705959032847,-204.73,0.00022404,2]
[312545618,1705959032857,-556.07,0.00022445,2]
[312545619,1705959032867,-204.73,0.00022463,2]
[312545620,1705959032877,-281.95,0.0002251,2]
[312545621,1705959032887,-204.73,0.00022521,2]
[312545622,1705959032898,-1278.36,0.0002255,2]
[312545623,1705959032908,-248.06321113,0.00022766,2]
[312545624,1705959032919,-4628.55776102,0.00022766,2]
[312545625,1705959032928,-494.66439797,0.00022766,2]
[312545626,1705959032937,-200.0,0.000228,8]
[312545627,1705959032947,-6720.8195,0.00022895,2]
[312545628,1705959032957,-4219.9613,0.00022898,2]
[312545629,1705959032966,-173.0569061,0.000229,2]
[312545630,1705959032977,-356.18193881,0.000229,2]
[312545631,1705959032987,-500.0,0.000229,8]
[312545632,1705959032996,-426.11299958,0.00022901,2]
[312545633,1705959033005,-157.64323846,0.00022951,2]
[312545634,1705959033014,-318.86956823,0.0002299,2]
[312545635,1705959033024,-1851.9117779,0.00022992,2]
[312545636,1705959033034,-203.14829801,0.00022992,2]
[312545637,1705959033043,-28259.92403998,0.00022994,2]
[312545638,1705959033053,-122855.02790768,0.00022995,2]
[312545639,1705959033062,-155.0,0.00022996,2]
[312545640,1705959033072,-1531.76871998,0.00022996,2]
[312545641,1705959033085,-1797.58297134,0.00022996,2]
[312545642,1705959033094,-3306.41702866,0.00022996,2]
[312545643,1705959033106,-553.29013922,0.00022996,2]
[312545644,1705959033116,-954.05652784,0.00022996,15]
[312545645,1705959033125,-196.95281856,0.00022996,2]
[312545646,1705959033136,-155.0,0.00022996,2]
[312545647,1705959033145,-286.54163893,0.00022996,2]
[312545648,1705959033154,-279.4509167,0.00022996,2]
[312545649,1705959033165,-155.0,0.00022996,2]
[312545650,1705959033174,-228.3967642,0.00022996,2]
[312545651,1705959033183,-2319.9241295,0.00022996,2]
[312545652,1705959033193,-1504.50213431,0.00022996,2]
[312545653,1705959033205,-734.66922033,0.00022996,2]
[312545654,1705959033217,-381.03131594,0.00022996,2]
[312545655,1705959033227,-268.42503343,0.00022996,2]
[312545656,1705959033236,-164.03979717,0.00022996,2]
[312545657,1705959033246,-807.22100922,0.00022996,2]
[312545658,1705959033258,-449.02788431,0.00022996,2]
[312545659,1705959033268,-230.58874034,0.00022996,2]
[312545660,1705959033278,-625.89989292,0.00022996,2]
[312545661,1705959033287,-217.97798028,0.00022996,2]
[312545662,1705959033296,-193.17462862,0.00022996,2]
[312545663,1705959033306,-158.86466524,0.00022996,2]
[312545664,1705959033315,-523.73781275,0.00022996,2]
[312545665,1705959033325,-726.87796621,0.00022996,2]
[312545666,1705959033336,-155.0,0.00022996,2]
[312545667,1705959033348,-2020.91899036,0.00022996,2]
[312545668,1705959033357,-161.84530984,0.00022996,2]
[312545669,1705959033367,-1278.13193774,0.00022996,2]
[312545670,1705959033376,-155.0,0.00022996,2]
[312545671,1705959033387,-1365.33757079,0.00022996,2]
[312545672,1705959033397,-275.24311985,0.00022996,2]
[312545673,1705959033406,-1060.55480173,0.00022996,2]
[312545674,1705959033416,-4274.40730541,0.00022997,2]
[312545675,1705959033426,-8513.36504574,0.00022997,2]
[312545676,1705959033435,-242.58443095,0.00022998,2]
[312545677,1705959033445,-196.82515123,0.00022998,2]
[312545678,1705959033454,-162.27355043,0.00022998,2]
[312545679,1705959033463,-1050.80754485,0.00022998,2]
[312545680,1705959033474,-2140.25984846,0.00022999,2]
[312545681,1705959033484,-202.76099161,0.00022999,2]
[312545682,1705959033493,-155.0,0.00022999,2]
[312545683,1705959033503,-155.0,0.00022999,2]
[312545684,1705959033513,-233.29692962,0.00022999,2]
[312545685,1705959033523,-759.28292396,0.00022999,2]
[312545686,1705959033532,-215.18715609,0.00022999,2]
[312545687,1705959033543,-260.29229258,0.00022999,2]
[312545688,1705959033555,-295.51839243,0.00022999,2]
[312545689,1705959033566,-1011.22518572,0.00022999,5]
[312545690,1705959033576,-246.48996833,0.00022999,10]
[312545691,1705959033586,-92569.04050744,0.00023,2]
[312545692,1705959033599,-595.96207747,0.00023,2]
[312545693,1705959033611,-364.28267879,0.00023,2]
[312545694,1705959033626,-911.68,0.00023,2]
[312545695,1705959033638,-709.67685024,0.00023,2]
[312545696,1705959033650,-881.51369091,0.00023,2]
[312545697,1705959033661,-2491.54823111,0.00023,2]
[312545698,1705959033673,-2048.7102994,0.00023,2]
[312545699,1705959033684,-2105.34121199,0.00023,2]
[312545700,1705959033704,-650.95813285,0.00023,2]
[312545701,1705959033715,-14022.07199718,0.00023,2]
[312545702,1705959033728,-766.95294903,0.00023,2]
[312545703,1705959033741,-382.0077164,0.00023,2]
[312545704,1705959033753,-316.11110975,0.00023,2]
[312545705,1705959033782,-24057.3332219,0.00023,2]
[312545706,1705959033794,-2245.63353342,0.00023,2]
[312545707,1705959033805,-544.02,0.00023,2]
[312545708,1705959033816,-341.3934,0.00023,2]
[312545713,1705959038598,-204.0,0.00022958,2]
[312545714,1705959038608,-2145.81200394,0.00023,2]
[312545715,1705959038638,-16522.99954376,0.00023,2]
[312545716,1705959038650,-5894.5136636,0.00023,2]
[312545717,1705959038767,-473.62362058,0.00023,2]
[312545718,1705959038806,-431486.96812764,0.00023,2]
[312545719,1705959038818,-134744.28444154,0.00023,2]
[312545744,1705959041985,-2093.7035265,0.00023,2]
[312545745,1705959042026,-18780.416624,0.00023,2]
[312545746,1705959042484,-15578.96728732,0.00023,2]
[312545747,1705959042598,-900.54635,0.00023,2]
[312545748,1705959042609,-12929.4,0.00023,2]
[312545749,1705959042621,-345.59887772,0.00023,2]
[312545750,1705959042632,-2818.23345407,0.00023,2]
[312545751,1705959042657,-180975.56891913,0.00023,2]
[312545752,1705959042667,-2000.0,0.00023,2]
[312545753,1705959042676,-1468.60968577,0.00023028,2]
[312545754,1705959042686,-556.07,0.00023245,2]
[312545755,1705959042695,-214.25,0.00023337,2]
[312545756,1705959042704,-192.26,0.00023594,2]
[312545757,1705959042713,-292.0,0.00023701,2]
[312545759,1705959042722,-159.45567666,0.00023921,2]
[312545760,1705959042732,-2000.0,0.00024,2]
[312545761,1705959042740,-556.07,0.00024046,2]
[312545762,1705959042750,-281.95,0.00024154,2]
[312545763,1705959042759,-250.0,0.00024658,2]
[312545764,1705959042768,-556.07,0.00024847,2]
[312545765,1705959042779,-9000.10469719,0.00025,3]
[312545766,1705959042788,-350.0,0.00025,3]
[312545767,1705959042799,-2000.0,0.00025,2]
[312545768,1705959042809,-176.15,0.00025205,2]
[312545769,1705959042818,-846.0,0.00025233,2]
[312545770,1705959042827,-426.11299955,0.00025537,2]
[312545771,1705959042836,-160.18,0.00025733,2]
[312545772,1705959042846,-281.95,0.00025798,2]
[312545773,1705959042856,-163.46,0.00025804,2]
[312545774,1705959042866,-192.26,0.00025858,2]
[312545775,1705959042876,-214.25,0.0002593,2]
[312545776,1705959042887,-2000.0,0.00026,2]
[312545777,1705959042897,-292.0,0.00026335,2]
[312545778,1705959042906,-227.21490074,0.00026339,3]
[312545779,1705959042916,-202.1,0.00026575,2]
[312545780,1705959042926,-3575.25,0.00026575,2]
[312545781,1705959042936,-204.0,0.00026663,7]
[312545782,1705959042947,-159.45567666,0.0002691,2]
[312545783,1705959042956,-287.98726842,0.00026998,10]
[312545784,1705959042966,-400.0,0.00027,3]
[312545785,1705959042975,-2000.0,0.00027,2]
[312545786,1705959042984,-2559.0,0.000273,2]
[312545788,1705959042993,-155.0,0.00027397,2]
[312545790,1705959043002,-155.02,0.00027397,2]
[312545791,1705959043011,-179.86,0.00027397,2]
[312545793,1705959043020,-182.9,0.00027397,2]
[312545795,1705959043029,-6083.0,0.000274,2]
[312545798,1705959043039,-281.95,0.00027441,2]
[312545800,1705959043048,-185.80176911,0.000275,2]
[312545801,1705959043057,-182.9,0.00027758,2]
[312545803,1705959043066,-2000.0,0.00028,2]
[312545805,1705959043075,-182.9,0.00028118,2]
[312545808,1705959043085,-192.26,0.00028122,2]
[312545809,1705959043095,-426.11299955,0.00028174,2]
[312545811,1705959043104,-182.9,0.00028479,2]
[312545813,1705959043113,-214.25,0.00028524,2]
[312545815,1705959043123,-155.0,0.00028767,2]
[312545816,1705959043131,-182.9,0.00028839,2]
[312545817,1705959043140,-2690.70848333,0.00028968,6]
[312545818,1705959043149,-292.0,0.00028968,2]
[312545819,1705959043158,-450.0,0.00029,3]
[312545820,1705959043167,-2000.0,0.00029,2]
[312545821,1705959043176,-281.95,0.00029085,2]
[312545822,1705959043186,-155.02,0.0002911,2]
[312545824,1705959043195,-547.51,0.00029117,2]
[312545825,1705959043204,-182.9,0.000292,2]
[312545827,1705959043213,-624.03501934,0.00029242,2]
[312545829,1705959043223,-155.0,0.000295,3]
[312545831,1705959043232,-182.9,0.0002956,2]
[312545832,1705959043241,-179.86,0.0002968,2]
[312545835,1705959043251,-5455.34192852,0.00029899,2]
[312545837,1705959043260,-993.07358166,0.00029899,2]
[312545839,1705959043269,-159.45567666,0.000299,2]
[312545840,1705959043278,-700.0,0.000299,10]
[312545841,1705959043287,-182.9,0.00029921,2]
[312545842,1705959043296,-318.86956823,0.0002999,2]
[312545843,1705959043306,-501.64649698,0.00029998,2]
[312545844,1705959043315,-289.07791306,0.00029998,2]
[312545845,1705959043324,-211.71085073,0.00029998,2]
[312545846,1705959043333,-14715.97053759,0.00029998,2]
[312545847,1705959043619,-376.94349572,0.00029998,2]
[312545849,1705959043683,-4995.12,0.00029998,2]
[312545850,1705959043695,-348.06490042,0.00029998,2]
[312545851,1705959043706,-1578.299999,0.00029998,2]
[312545904,1705959046440,-182.27311441,0.00022999,2]
[312545906,1705959046450,-4001.42688559,0.00022999,2]
[312545908,1705959046461,-2274.78915779,0.00022999,2]
[312545911,1705959046668,-494.268,0.00022999,2]
[312545912,1705959046727,-3016.26432846,0.00022999,2]
[312545913,1705959046740,-719.90550111,0.00022999,2]
[312545914,1705959046785,-13.79686539,0.00022999,2]
[312545915,1705959046794,-2340.55262539,0.00029998,2]
[312545916,1705959046804,-150.01,0.00029999,2]
[312545917,1705959046813,-3298.79475817,0.00029999,2]
[312545918,1705959046822,-764.0,0.0003,5]
[312545919,1705959046831,-292827.35422952,0.0003,2]
[312545920,1705959046840,-7387.69756005,0.0003,7]
[312545921,1705959046850,-847.06410669,0.0003,3]
[312545922,1705959046859,-282.89706329,0.0003,4]
[312545923,1705959046868,-940.66361279,0.0003,4]
[312545924,1705959046878,-358.00273995,0.0003,2]
[312545925,1705959046887,-229.76329315,0.0003,60]
[312545926,1705959046896,-610.1887134,0.0003,4]
[312545927,1705959046905,-36565.2788946,0.0003,4]
[312545928,1705959065111,212.0,0.00018502,5]
[312545929,1705959069713,3195.13608794,0.00020866,2]
[312545931,1705959456473,172.37,0.00027833,120]
[312545932,1705959726353,-215.71744447,0.00021423,2]
[312545933,1705959726375,-54.28255553,0.00021424,2]
[312545934,1705959754126,204.0,0.00020958,2]
[312545935,1705959822526,-759.56227356,0.0002142,2]
[312545936,1705959822547,-172.02741418,0.0002142,2]
[312545937,1705959822566,-4275.93203836,0.00021421,2]
[312545938,1705959822586,-3896.4782739,0.00021424,2]
[312545973,1705960231586,-245.58,0.00021444,2]
[312545974,1705960231595,-166.8,0.00021444,2]
[312545975,1705960231604,-661.19869219,0.00021917,2]
[312545976,1705960231616,-723.29357829,0.00021917,2]
[312545977,1705960231627,-2193.5873222,0.00021917,2]
[312545978,1705960231637,-150.0,0.00021917,2]
[312545979,1705960231646,-1198.35622218,0.00021918,2]
[312545980,1705960231658,-400.09,0.00021918,2]
[312545981,1705960231679,-3460.2072529,0.00021918,2]
[312545982,1705960231691,-20739.27652492,0.00021918,2]
[312545983,1705960231700,-1000.0,0.00023244,2]
[312545984,1705960231710,-204.0,0.00023862,2]
[312545985,1705960231719,-503.16,0.00024046,2]
[312545986,1705960231728,-499.99,0.00024046,2]
[312545987,1705960231738,-210.0,0.00024108,2]
[312545988,1705960231747,-1303.04694334,0.00024636,2]
[312545989,1705960231757,-429.24657302,0.00025,2]
[312545990,1705960231766,-350.0,0.00025,3]
[312545991,1705960231775,-181.56,0.00025042,2]
[312545992,1705960231784,-862.33280686,0.00025495,2]
[312545993,1705960231795,-250.0,0.00026748,2]
[312545994,1705960231805,-11129.35939946,0.000268,2]
[312545995,1705960231819,-929.0264,0.000268,2]
[312545996,1705960231830,-3664.4721325,0.000268,2]
[312545997,1705960231842,-1652.31000009,0.000268,2]
[312545998,1705960231886,-717.24099228,0.000268,2]
[312545999,1705960231921,-1160.51223234,0.000268,2]
[312546009,1705960237422,-251.70096473,0.000268,2]
[312546010,1705960237439,-4385.3778786,0.000268,2]
[312546011,1705960237449,-166.8,0.00026805,2]
[312546012,1705960237458,-159.64,0.00026806,2]
[312546013,1705960237467,-947.33,0.0002687,2]
[312546014,1705960237477,-10000.0,0.00026932,2]
[312546015,1705960237497,-214.25,0.00026945,2]
[312546016,1705960237508,-780.55,0.0002697,2]
[312546017,1705960237518,-201.91,0.00026981,2]
[312546018,1705960237528,-250.0,0.00026981,2]
[312546019,1705960237538,-184.78,0.00026996,2]
[312546020,1705960237547,-200.0,0.00027,2]
[312546021,1705960237557,-400.0,0.00027,3]
[312546022,1705960237567,-2979.37,0.00027009,2]
[312546023,1705960237576,-365.03,0.00027012,2]
[312546024,1705960237586,-222.98,0.00027029,2]
[312546025,1705960237596,-2000.0,0.00027058,2]
[312546026,1705960237606,-247.24074097,0.000271,2]
[312546027,1705960237615,-153.89,0.00027183,2]
[312546028,1705960237625,-160.0,0.00027184,2]
[312546029,1705960237636,-572.14,0.00027198,2]
[312546030,1705960237646,-150.04,0.00027262,2]
[312546031,1705960237656,-153.89,0.00027277,2]
[312546032,1705960237666,-181.56,0.00027306,2]
[312546033,1705960237676,-215.10761627,0.00027346,6]
[312546034,1705960237686,-213.14816404,0.00027346,2]
[312546035,1705960237696,-153.89,0.00027371,2]
[312546036,1705960237707,-190.30238729,0.00027374,2]
[312546037,1705960237717,-928.77185501,0.00027374,2]
[312546038,1705960237727,-171.83283384,0.00027374,2]
[312546039,1705960237738,-361.93844403,0.00027374,2]
[312546041,1705960237748,-524.85123052,0.00027375,2]
[312546043,1705960237758,-225.64,0.00027397,2]
[312546045,1705960237768,-153.07,0.00027397,2]
[312546047,1705960237777,-153.89,0.00027466,2]
[312546050,1705960237789,-153.89,0.0002756,2]
[312546052,1705960237799,-153.89,0.00027655,2]
[312546054,1705960237809,-153.89,0.00027749,2]
[312546056,1705960237819,-225.64,0.00027758,2]
[312546058,1705960237829,-153.89,0.00027844,2]
[312546060,1705960237840,-947.33,0.00027864,2]
[312546062,1705960237849,-204.0,0.00027878,8]
[312546064,1705960237859,-153.89,0.00027938,2]
[312546066,1705960237869,-202.1,0.00027958,2]
[312546068,1705960237878,-153.89,0.00028033,2]
[312546070,1705960237888,-225.64,0.00028118,2]
[312546072,1705960237898,-153.89,0.00028127,2]
[312546074,1705960237908,-153.89,0.00028221,2]
[312546076,1705960237918,-153.89,0.00028316,2]
[312546078,1705960237928,-153.89,0.0002841,2]
[312546080,1705960237939,-159.64,0.0002845,2]
[312546083,1705960237949,-225.64,0.00028479,2]
[312546085,1705960237959,-153.89,0.00028505,2]
[312546087,1705960237969,-153.07,0.00028539,2]
[312546089,1705960237980,-153.89,0.00028599,2]
[312546091,1705960237990,-500.0,0.00028616,2]
[312546093,1705960237999,-481.2212,0.00028739,2]
[312546095,1705960238010,-1116.45690923,0.00028796,2]
[312546097,1705960238019,-418.21818727,0.00028796,2]
[312546098,1705960238029,-225.64,0.00028839,2]
[312546099,1705960238039,-947.33,0.00028858,2]
[312546100,1705960238049,-450.0,0.00029,3]
[312546101,1705960238060,-225.64,0.000292,2]
[312546102,1705960238069,-225.64,0.0002956,2]
[312546103,1705960238079,-181.56,0.0002957,2]
[312546104,1705960238088,-153.07,0.0002968,2]
[312546105,1705960238098,-388.55723841,0.00029696,2]
[312546106,1705960238107,-2916.38997405,0.00029698,2]